Workbook

Sheet Град завсмость
A1: Таблца №1
A2: № Серии | B2: Возраст бетона, условя тверденя | C2: Прочность бетона при сжатии Rф, Мпа | D2: Среднее значение прочности контролруемого участка по прибору, Мпа
D3: Среднее значение прочности бетона контрольн. участка Rнi, Мпа | E3: Среднее значение прочности бетона контрольн. участка после уточнения Rн ут, Мпа | F3: Коэффицент совпадения Кс | G3: Среднеквадратическое совпадение Sтнм построенной градуировочной зависмости (Е.7 ГОСТ22690-2015) | H3: Результаты удовлетворяющие условию п.Е6 ГОСТ22690-2015
A4: 1 | B4: 28 сут., нормальное, t=23±3С° | C4: 34.8 | D4: 35.8 | E4: 35.23749681 | F4: 0.9745098039 | G4: 0.6749662169 | H4: 0.648175865
A5: 2 | B5: 28 сут., нормальное, t=23±3С° | C5: 35.6 | D5: 36.2 | E5: 36.09231633 | H5: 0.7293940348
A6: 3 | B6: 28 сут., нормальное, t=23±3С° | C6: 35 | D6: 36.3 | E6: 35.37203744 | H6: 0.5511941696
A7: 4 | B7: 28 сут., нормальное, t=23±3С° | C7: 33.8 | D7: 33.9 | E7: 34.82217988 | H7: 1.514416358 | M7: 0.69
A8: 5 | B8: 28 сут., нормальное, t=23±3С° | C8: 35.8 | D8: 36.4 | E8: 35.99466575 | H8: 0.2884081454 | M8: =(M7/C19)*100 -> 
A9: 6 | B9: 28 сут., нормальное, t=23±3С° | C9: 34.6 | D9: 35.1 | E9: 34.71843801 | H9: 0.1754725081
A10: 7 | B10: 28 сут., нормальное, t=23±3С° | C10: 34.3 | D10: 35.8 | E10: 34.94298045 | H10: 0.9526113129
A11: 8 | B11: 28 сут., нормальное, t=23±3С° | C11: 35.3 | D11: 35.9 | E11: 35.72103338 | H11: 0.6237843707
A12: 9 | B12: 28 сут., нормальное, t=23±3С° | C12: 34.8 | D12: 35.5 | E12: 35.18646411 | H12: 0.5725680806
A13: 10 | B13: 28 сут., нормальное, t=23±3С° | C13: 35.7 | D13: 36.1 | E13: 35.84829921 | H13: 0.2197135322 | L13: =SQRT(G4^2+0.02^2) -> 0.675262463
A14: 11 | B14: 28 сут., нормальное, t=23±3С° | C14: 35.4 | D14: 36.6 | E14: 36.19800742 | H14: 1.182292387
A15: 12 | B15: 28 сут., нормальное, t=23±3С° | C15: 35.8 | D15: 36.9 | E15: 36.41330681 | H15: 0.9086481543
A16: 13 | B16: 28 сут., нормальное, t=23±3С° | C16: 34.6 | D16: 36.8 | E16: 35.6253911 | H16: 1.519173955
A17: 14 | B17: 28 сут., нормальное, t=23±3С° | C17: 35.3 | D17: 35.6 | E17: 35.83705755 | H17: 0.7956806331
A18: 15 | B18: 28 сут., нормальное, t=23±3С° | C18: 34.6 | D18: 36.1 | E18: 35.66710284 | H18: 1.580972228
C19: =ср ->  | D19: 35.94285714 | E19: 35.57845181

Sheet Прочность
A1: Дата бетонирования | B1: № контролируемого участка | C1: Среднее значение прочности бетона контролруемого участка (косвенная характерстика), Мпа | D1: К совпадения | E1: Среднее значение прочности бетона контрольного участка уточненое, Мпа | G1: К вариации прочности бетона V, рассчтанный по ГОСТ 18105-2010 ф.(7), % | H1: Коэффциент требуемой прочности Кт принимают по таблице 2 ГОСТ 18105-2010 | I1: Sнм прочности бетона в партии, расчтанное по формуле (2) ГОСТ 18105-2010 | J1: Класс (Вф) в промежуточном возрасте в контролируемой партии конструкций по результатам результ. сплошного неразр. контроля прочности по ГОСТ 18105-2010
E2: частное | F2: среднее Rm
A3: 1 | B3: 2 | C3: 4 | D3: 5 | F3: 7 | G3: 8 | H3: 9 | I3: 10 | J3: 11
A4: 2016-07-16 | B4: 7 | C4: 29.29 | D4: 0.97 | E4: =C4-0.67 -> 28.62 | F4: =AVERAGEA(E4:E28) -> 30.3072 | G4: =(AI4/F4)*100 -> 8.675387663 | H4: 1.07 | I4: =_xlfn.STDEV.S(E4:E25) -> 2.050787041 | J4: =F4/H4 -> 28.32448598 | AA4: Sм= | AB4: ( | AC4: =I4 -> 2.050787041 | AD4: + | AE4: 0.67 | AF4: ) | AG4: 1 | AH4: = | AI4: =(AC4+AE4/AE5)*(AG4/(0.7*0.76+0.3)) -> 2.62926709 | AJ4: Sнм= | AK4: √ | AL4: =(E4-$F$4)^2+(E5-$F$4)^2+(E6-$F$4)^2+(E7-$F$4)^2+(E8-$F$4)^2+(E9-$F$4)^2+(E10-$F$4)^2+(E11-$F$4)^2+(E12-$F$4)^2+(E13-$F$4)^2+(E14-$F$4)^2+(E15-$F$4)^2+(E16-$F$4)^2+(E17-$F$4)^2+(E18-$F$4)^2+(E19-$F$4)^2+(E20-$F$4)^2+(E21-$F$4)^2+(E22-$F$4)^2+(E23-$F$4)^2+(E24-$F$4)^2+(E25-$F$4)^2+(E26-$F$4)^2+(E27-$F$4)^2+(E28-$F$4)^2 -> 94.783304 | AM4: = | AN4: =SQRT(AL4/AL5) -> 1.98728567 | AO4: V | AP4: = | AQ4: =AI4 -> 2.62926709 | AR4: *100 | AS4: = | AT4: =AQ4/AQ5*100 -> 8.675387663 | AU4: Вф | AV4: =F4 -> 30.3072 | AW4: = | AX4: =AV4/AV5 -> 28.32448598 | AY4: Вф | AZ4: = | BA4: =AX4 -> 28.32448598 | BB4: *100 | BC4: = | BD4: =BA4/BA5*100 -> 113.2979439
B5: 8 | C5: 29.85 | E5: =C5-0.67 -> 29.18 | AE5: =SQRT(COUNT(E4:E28)-1) -> 4.898979486 | AG5: 0,7*0,76+0,3 | AL5: =COUNT(E4:E28)-1 -> 24 | AQ5: =F4 -> 30.3072 | AV5: =H4 -> 1.07 | BA5: 25
B6: 9 | C6: 33.69 | E6: 33.02 | L6: =BD4 -> 113.2979439
B7: 10 | C7: 32.75 | E7: 32.08 | AA7: Sм= | AB7: ( | AC7: =I29 -> 2.196918395 | AD7: + | AE7: 0.67 | AF7: ) | AG7: 1 | AH7: = | AI7: =(AC7+AE7/AE8)*(AG7/(0.7*0.76+0.3)) -> 2.82527276 | AJ7: Sнм= | AK7: √ | AL7: =(E29-F29)^2+(E30-F29)^2+(E31-F29)^2+(E32-F29)^2+(E33-F29)^2+(E34-F29)^2+(E35-F29)^2+(E36-F29)^2+(E37-F29)^2+(E38-F29)^2+(E39-F29)^2+(E40-F29)^2+(E41-F29)^2+(E42-F29)^2+(E43-F29)^2+(E44-F29)^2+(E45-F29)^2+(E46-F29)^2+(E47-F29)^2+(E48-F29)^2 -> 99.44708 | AM7: = | AN7: =SQRT(AL7/AL8) -> 2.28780612 | AO7: V | AP7: = | AQ7: =AI7 -> 2.82527276 | AR7: *100 | AS7: = | AT7: =AQ7/AQ8*100 -> 9.403157692 | AU7: Вф | AV7: =F29 -> 30.046 | AW7: = | AX7: =AV7/AV8 -> 27.56513761 | AY7: Вф | AZ7: = | BA7: =AX7 -> 27.56513761 | BB7: *100 | BC7: = | BD7: =BA7/BA8*100 -> 110.2605505
B8: 16 | C8: 28.88 | E8: 28.21 | AE8: =SQRT(COUNT(E29:E48)-1) -> 4.358898944 | AG8: 0,7*0,76+0,3 | AL8: =COUNT(E29:E48)-1 -> 19 | AQ8: =F29 -> 30.046 | AV8: =H29 -> 1.09 | BA8: 25
B9: 17 | C9: 32.16 | E9: 31.49
B10: 18 | C10: 33.43 | E10: 32.76 | AA10: Sм= | AB10: ( | AC10: =I49 -> 2.168811792 | AD10: + | AE10: 0.67 | AF10: ) | AG10: 1 | AH10: = | AI10: =(AC10+AE10/AE11)*(AG10/(0.7*0.76+0.3)) -> 2.771123761 | AJ10: Sнм= | AK10: √ | AL10: =(E49-F49)^2+(E50-F49)^2+(E51-F49)^2+(E52-F49)^2+(E53-F49)^2+(E54-F49)^2+(E55-F49)^2+(E56-F49)^2+(E57-F49)^2+(E58-F49)^2+(E59-F49)^2+(E60-F49)^2+(E61-F49)^2+(E62-F49)^2+(E63-F49)^2+(E64-F49)^2+(E65-F49)^2+(E66-F49)^2+(E67-F49)^2+(E68-F49)^2+(E69-F49)^2+(E70-F49)^2+(E71-F49)^2 -> 104.2824609 | AM10: = | AN10: =SQRT(AL10/AL11) -> 2.177179795 | AO10: V | AP10: = | AQ10: =AI10 -> 2.771123761 | AR10: *100 | AS10: = | AT10: =AQ10/AQ11*100 -> 9.026078272 | AU10: Вф | AV10: =F49 -> 30.70130435 | AW10: = | AX10: =AV10/AV11 -> 28.6928078 | AY10: Вф | AZ10: = | BA10: =AX10 -> 28.6928078 | BB10: *100 | BC10: = | BD10: =BA10/BA11*100 -> 114.7712312
B11: 19 | C11: 33.14 | E11: 32.47 | AE11: =SQRT(COUNT(E10:E34)-1) -> 4.898979486 | AG11: 0,7*0,76+0,3 | AL11: =COUNT(E49:E71)-1 -> 22 | AQ11: =F49 -> 30.70130435 | AV11: =H49 -> 1.07 | BA11: 25
B12: 27 | C12: 33.89 | E12: 33.22
B13: 28 | C13: 27.68 | E13: =C13-0.67 -> 27.01 | AA13: Дата бетонрования: | AG13: =A4 -> 2016-07-16 | AH13: - | AI13: =A49 -> 2016-07-18
B14: 29 | C14: 30.02 | E14: 29.35 | AA14: Дата испытания: | AF14: =AI13+28 -> 2016-08-15
B15: 30 | C15: 33.96 | E15: 33.29
B16: 33 | C16: 30.11 | E16: 29.44
B17: 34 | C17: 30.72 | E17: 30.05
B18: 35 | C18: 31.7 | E18: 31.03
B19: 39 | C19: 27.56 | E19: 26.89 | Q19: Вывод: по результатам проведенных испытаний средняя прочность бетона
B20: 46 | C20: 30.15 | E20: 29.48 | Q20: конструкций составла: | Y20: =F4 -> 30.3072 | Z20: Мпа, что соответсвует значеню условного класса
B21: 47 | C21: 30.06 | E21: 29.39 | Q21: Вф | R21: = | S21: =J4 -> 28.32448598 | T21: ( | U21: =BD4 -> 113.2979439 | V21: % | W21: )
B22: 48 | C22: 30.06 | E22: 29.39
B23: 56 | C23: 29.54 | E23: 28.87 | Q23: Вывод: по результатам проведенных испытаний средняя прочность бетона
B24: 57 | C24: 28.68 | E24: 28.01 | Q24: конструкций составла: | Y24: =F29 -> 30.046 | Z24: Мпа, что соответсвует значеню условного класса
B25: 58 | C25: 33.29 | E25: 32.62 | Q25: Вф | R25: = | S25: =J29 -> 27.56513761 | T25: ( | U25: =BD7 -> 110.2605505 | V25: % | W25: )
B26: 66 | C26: 29.36 | E26: 28.69
B27: 67 | C27: 31.65 | E27: 30.98 | Q27: Вывод: по результатам проведенных испытаний средняя прочность бетона
B28: 68 | C28: 32.81 | E28: 32.14 | Q28: конструкций составла: | Y28: =F49 -> 30.70130435 | Z28: Мпа, что соответсвует значеню условного класса
A29: =A4+1 -> 2016-07-17 | B29: 1 | C29: 29.41 | E29: 28.74 | F29: =AVERAGEA(E29:E48) -> 30.046 | G29: =(AI7/F29)*100 -> 9.403157692 | H29: 1.09 | I29: =_xlfn.STDEV.S(E26:E47) -> 2.196918395 | J29: =F29/H29 -> 27.56513761 | Q29: Вф | R29: = | S29: =J49 -> 28.6928078 | T29: ( | U29: =BD10 -> 114.7712312 | V29: % | W29: )
B30: 2 | C30: 32.56 | E30: 31.89
B31: 3 | C31: 31.99 | E31: 31.32
B32: 4 | C32: 27.45 | E32: 26.78
B33: 5 | C33: 32.61 | E33: 31.94
B34: 6 | C34: 28.16 | E34: 27.49
B35: 11 | C35: 32.56 | E35: 31.89
B36: 12 | C36: 32.98 | E36: 32.31 | L36: =BD7 -> 110.2605505
B37: 13 | C37: 27.83 | E37: 27.16
B38: 14 | C38: 33.51 | E38: 32.84
B39: 15 | C39: 33.51 | E39: 32.84
B40: 20 | C40: 31.61 | E40: 30.94
B41: 21 | C41: 32.47 | E41: 31.8
B42: 22 | C42: 30.08 | E42: 29.41
B43: 23 | C43: 30.23 | E43: 29.56
B44: 24 | C44: 31.49 | E44: 30.82
B45: 25 | C45: 27.16 | E45: 26.49
B46: 26 | C46: 28.19 | E46: 27.52
B47: 32 | C47: 27.53 | E47: 26.86
B48: 31 | C48: 32.99 | E48: 32.32
A49: =A29+1 -> 2016-07-18 | B49: 36 | C49: 31.57 | E49: 30.9 | F49: =AVERAGEA(E49:E71) -> 30.70130435 | G49: =(AI10/F49)*100 -> 9.026078272 | H49: 1.07 | I49: =_xlfn.STDEV.S(E48:E69) -> 2.168811792 | J49: =F49/H49 -> 28.6928078
B50: 37 | C50: 30.53 | E50: 29.86
B51: 38 | C51: 28.12 | E51: 27.45
B52: 40 | C52: 27.03 | E52: 26.36
B53: 41 | C53: 31.62 | E53: 30.95
B54: 42 | C54: 27.53 | E54: 26.86
B55: 43 | C55: 31.9 | E55: 31.23
B56: 44 | C56: 32.75 | E56: 32.08
B57: 45 | C57: 32.07 | E57: 31.4
B58: 49 | C58: 33.53 | E58: 32.86
B59: 50 | C59: 33.52 | E59: 32.85 | L59: =BD10 -> 114.7712312
B60: 51 | C60: 33.39 | E60: 32.72
B61: 52 | C61: 32.62 | E61: 31.95
B62: 53 | C62: 27.87 | E62: 27.2
B63: 54 | C63: 28.11 | E63: 27.44
B64: 55 | C64: 33.2 | E64: 32.53
B65: 59 | C65: 30.58 | E65: 29.91
B66: 60 | C66: 32.81 | E66: 32.14
B67: 61 | C67: 31.56 | E67: 30.89
B68: 62 | C68: 33.55 | E68: 32.88
B69: 63 | C69: 31.03 | E69: =C69-0.67 -> 30.36
B70: 64 | C70: 33.68 | E70: 33.01
B71: 65 | C71: 32.97 | E71: 32.3

Sheet Лист1
A1: =RAND()*($D$1-$E$1)+$E$1 -> 35.73472576 | B1: =ROUND(A1,2) -> 35.73 | C1: 7 | D1: 36 | E1: 29 | G1: =RAND()*($D$1-$E$1)+$E$1 -> 34.83665144 | H1: =ROUND(G1,2) -> 34.84 | J1: =RAND()*($D$1-$E$1)+$E$1 -> 32.8153709 | K1: =ROUND(J1,2) -> 32.82
A2: =RAND()*($D$1-$E$1)+$E$1 -> 29.07666463 | B2: =ROUND(A2,2) -> 29.08 | C2: 8 | G2: =RAND()*($D$1-$E$1)+$E$1 -> 31.4111721 | H2: =ROUND(G2,2) -> 31.41 | J2: =RAND()*($D$1-$E$1)+$E$1 -> 33.95452897 | K2: =ROUND(J2,2) -> 33.95
A3: 30.85834759 | B3: 30.86 | C3: 9 | G3: 35.01143482 | H3: 35.01 | J3: 35.01247728 | K3: 35.01
A4: 33.66060401 | B4: 33.66 | C4: 10 | G4: 32.14323501 | H4: 32.14 | J4: 29.932249 | K4: 29.93
A5: 31.93388527 | B5: 31.93 | C5: 16 | G5: 35.18367353 | H5: 35.18 | J5: 33.42137635 | K5: 33.42
A6: 29.72547966 | B6: 29.73 | C6: 17 | G6: 33.22455277 | H6: 33.22 | J6: 31.57390906 | K6: 31.57
A7: 29.59621029 | B7: 29.6 | C7: 18 | G7: 32.30775682 | H7: 32.31 | J7: 29.94687372 | K7: 29.95
A8: 35.07148413 | B8: 35.07 | C8: 19 | G8: 35.13797719 | H8: 35.14
A9: 35.74866735 | B9: 35.75 | C9: 27 | G9: 35.13171409 | H9: 35.13
A10: 34.26388579 | B10: 34.26 | C10: 28 | G10: 34.1350469 | H10: 34.14
A11: 32.38910322 | B11: 32.39 | C11: 29 | G11: 29.08653979 | H11: 29.09
A12: 32.81666319 | B12: 32.82 | C12: 30 | G12: 33.30577744 | H12: 33.31
A13: 29.9742799 | B13: 29.97 | C13: 33 | G13: 33.19231208 | H13: 33.19
A14: 29.9411694 | B14: 29.94 | C14: 34
A15: 34.37678595 | B15: 34.38 | C15: 35
A16: 33.37829727 | B16: 33.38 | C16: 39
A17: 31.8652546 | B17: 31.87 | C17: 46
A18: 33.79698247 | B18: 33.8 | C18: 47
A19: 35.47040488 | B19: 35.47 | C19: 48
A20: 32.35143412 | B20: 32.35 | C20: 56
A21: 30.23506472 | B21: 30.24 | C21: 57
A22: 31.89494907 | B22: 31.89 | C22: 58
A23: 35.65300892 | B23: 35.65 | C23: 66
A24: 35.78879888 | B24: 35.79 | C24: 67
A25: 29.07548755 | B25: 29.08 | C25: 68
A26: 29.84115843 | B26: 29.84
A27: 29.83080997 | B27: 29.83
A28: 29.50896846 | B28: 29.51
A29: 35.65449695 | B29: 35.65
A30: 29.76335078 | B30: 29.76
A31: 30.3795425 | B31: 30.38
A32: 32.66307307 | B32: 32.66
A33: 30.55704877 | B33: 30.56
A34: 34.93728499 | B34: 34.94
A35: 29.19487578 | B35: 29.19
A36: 31.56150298 | B36: 31.56
A37: 35.26616014 | B37: 35.27
A38: 34.7610699 | B38: 34.76
A39: 29.38316758 | B39: 29.38
A40: 30.27991242 | B40: 30.28
A41: 29.32788534 | B41: 29.33
A42: 32.33153249 | B42: 32.33
A43: 33.74728779 | B43: 33.75
A44: 34.21104951 | B44: 34.21
A45: 31.38696151 | B45: 31.39
A46: 32.46106756 | B46: 32.46
A47: 29.21867591 | B47: 29.22
A48: 30.44660253 | B48: 30.45
A49: 32.33648461 | B49: 32.34
A50: 30.94441338 | B50: 30.94
A51: 29.8804177 | B51: 29.88
A52: 30.69033602 | B52: 30.69
A53: 32.07206488 | B53: 32.07
A54: 29.72381769 | B54: 29.72
A55: 32.93155811 | B55: 32.93
A56: 33.25882453 | B56: 33.26
A57: 30.1513512 | B57: 30.15
A58: 30.86739466 | B58: 30.87
A59: 30.74444247 | B59: 30.74
A60: 33.60201913 | B60: 33.6
A61: 32.84353375 | B61: 32.84
A62: 35.31195873 | B62: 35.31
A63: 34.29406793 | B63: 34.29
A64: 30.69029583 | B64: 30.69
A65: 33.77251952 | B65: 33.77
A66: =RAND()*($D$1-$E$1)+$E$1 -> 32.93260033 | B66: =ROUND(A66,2) -> 32.93
A67: 35.69574061 | B67: 35.7
A68: 32.46872092 | B68: 32.47

Sheet Титул
B2: ООО «Строительная компания
G5: УТВЕРЖДАЮ
E6: Генеральный директор ООО
C10: Заключение
A16: Проектный класс прочности бетона:
A18: Дата бетонирования

Sheet таб расчетов
A1: Результаты определения прочности бетона методом ударного импульса и расчет класса бетона | Q1: этажа
K2: монолитного ж/б перекрытия
K3: монолтных ж/б конструкций стенн, колонн
